[Event "Titled Tuesday Blitz March 01 Late 2022"]
[White "Scalzo, Antonio R"]
[Black "Khabinets, Ivan"]
[WhiteFideId "2079674"]
[BlackFideId "14115980"]
[WhiteElo "2306"]
[BlackElo "2114"]
[Result "0-1"]
[Round "04"]
[TimeControl "180+1"]
[Date "2022.03.02"]
[WhiteClock "0:00:02"]
[BlackClock "0:00:19"]

1. b4 {[%clk 0:02:59]}  e6 {[%clk 0:02:59]} 2. Bb2 {[%clk 0:02:59]}  Nf6 {[%clk 0:03:00]} 3. a3 {[%clk 0:02:58]}  b6 {[%clk 0:03:00]} 4. e3 {[%clk 0:02:58]}  Bb7 {[%clk 0:03:01]} 5. Nf3 {[%clk 0:02:58]}  Be7 {[%clk 0:03:01]} 6. c4 {[%clk 0:02:58]}  O-O {[%clk 0:03:01]} 7. Be2 {[%clk 0:02:55]}  d5 {[%clk 0:03:01]} 8. O-O {[%clk 0:02:55]}  dxc4 {[%clk 0:03:02]} 9. Bxc4 {[%clk 0:02:55]}  c5 {[%clk 0:03:02]} 10. bxc5 {[%clk 0:02:51]}  Bxc5 {[%clk 0:03:02]} 11. d4 {[%clk 0:02:49]}  Be7 {[%clk 0:03:02]} 12. Nbd2 {[%clk 0:02:49]}  Nc6 {[%clk 0:03:02]} 13. Rc1 {[%clk 0:02:47]}  Rc8 {[%clk 0:03:01]} 14. Ba2 {[%clk 0:02:47]}  Qd7 {[%clk 0:02:48]} 15. Bb1 {[%clk 0:02:45]}  Na5 {[%clk 0:02:47]} 16. Ne5 {[%clk 0:02:28]}  Qd6 {[%clk 0:02:45]} 17. Qe2 {[%clk 0:01:53]}  Nd7 {[%clk 0:02:22]} 18. Nef3 {[%clk 0:00:58]}  Nf6 {[%clk 0:02:07]} 19. Ne5 {[%clk 0:00:57]}  Nd7 {[%clk 0:02:06]} 20. Nef3 {[%clk 0:00:58]}  a6 {[%clk 0:01:59]} 21. Qd3 {[%clk 0:00:58]}  g6 {[%clk 0:01:55]} 22. Ba2 {[%clk 0:00:41]}  b5 {[%clk 0:01:51]} 23. Ne4 {[%clk 0:00:37]}  Bxe4 {[%clk 0:01:44]} 24. Qxe4 {[%clk 0:00:37]}  Nc4 {[%clk 0:01:45]} 25. Bxc4 {[%clk 0:00:37]}  bxc4 {[%clk 0:01:43]} 26. Rc3 {[%clk 0:00:36]}  Nb6 {[%clk 0:01:38]} 27. Rc2 {[%clk 0:00:36]}  Na4 {[%clk 0:01:33]} 28. Bc1 {[%clk 0:00:36]}  Qd5 {[%clk 0:01:25]} 29. Qg4 {[%clk 0:00:34]}  c3 {[%clk 0:01:14]} 30. e4 {[%clk 0:00:30]}  Qb3 {[%clk 0:01:13]} 31. Ne1 {[%clk 0:00:30]}  Bxa3 {[%clk 0:01:08]} 32. Bh6 {[%clk 0:00:30]}  Rfd8 {[%clk 0:01:06]} 33. Qf4 {[%clk 0:00:26]}  Bf8 {[%clk 0:00:57]} 34. Bg5 {[%clk 0:00:27]}  Rxd4 {[%clk 0:00:52]} 35. Bf6 {[%clk 0:00:27]}  Rd1 {[%clk 0:00:46]} 36. Be5 {[%clk 0:00:24]}  Rc5 {[%clk 0:00:30]} 37. Re2 {[%clk 0:00:18]}  Qc4 {[%clk 0:00:25]} 38. Re3 {[%clk 0:00:12]}  c2 {[%clk 0:00:20]} 39. Rh3 {[%clk 0:00:10]}  Rxe5 {[%clk 0:00:19]} 40. Qxe5 {[%clk 0:00:07]}  c1=Q {[%clk 0:00:18]} 41. Qf6 {[%clk 0:00:02]}  Qxf1+ {[%clk 0:00:18]} 42. Kxf1 {[%clk 0:00:02]}  Rxe1# {[%clk 0:00:19]} 0-1


[Site "https://www.chess.com"]

[Event "Titled Tuesday Blitz March 01 Late 2022"]
[White "Silva, Kaua Marques"]
[Black "Morales Flores, Monserrat"]
[WhiteFideId "22701168"]
[BlackFideId "3412016"]
[WhiteElo "2013"]
[BlackElo "2028"]
[Result "1/2-1/2"]
[Round "04"]
[TimeControl "180+1"]
[Date "2022.03.02"]
[WhiteClock "0:00:22"]
[BlackClock "0:00:17"]

1. e4 {[%clk 0:03:00]}  c5 {[%clk 0:02:57]} 2. Nc3 {[%clk 0:02:58]}  e6 {[%clk 0:02:56]} 3. g3 {[%clk 0:02:58]}  Nc6 {[%clk 0:02:54]} 4. Bg2 {[%clk 0:02:58]}  g6 {[%clk 0:02:55]} 5. h4 {[%clk 0:02:57]}  h5 {[%clk 0:02:55]} 6. d3 {[%clk 0:02:57]}  Bg7 {[%clk 0:02:55]} 7. Nge2 {[%clk 0:02:56]}  Nge7 {[%clk 0:02:55]} 8. Be3 {[%clk 0:02:56]}  d6 {[%clk 0:02:54]} 9. d4 {[%clk 0:02:55]}  cxd4 {[%clk 0:02:55]} 10. Nxd4 {[%clk 0:02:56]}  Nxd4 {[%clk 0:02:54]} 11. Bxd4 {[%clk 0:02:56]}  e5 {[%clk 0:02:51]} 12. Be3 {[%clk 0:02:54]}  Bg4 {[%clk 0:02:51]} 13. f3 {[%clk 0:02:48]}  Be6 {[%clk 0:02:48]} 14. Qd2 {[%clk 0:02:44]}  O-O {[%clk 0:02:46]} 15. O-O-O {[%clk 0:02:44]}  Rc8 {[%clk 0:02:46]} 16. Kb1 {[%clk 0:02:41]}  Qa5 {[%clk 0:02:41]} 17. Nd5 {[%clk 0:02:37]}  Qd8 {[%clk 0:02:28]} 18. Bf1 {[%clk 0:02:24]}  Bxd5 {[%clk 0:02:16]} 19. exd5 {[%clk 0:02:23]}  Nf5 {[%clk 0:02:16]} 20. Bf2 {[%clk 0:02:21]}  Qc7 {[%clk 0:02:11]} 21. g4 {[%clk 0:02:17]}  hxg4 {[%clk 0:02:03]} 22. fxg4 {[%clk 0:02:18]}  Nd4 {[%clk 0:02:04]} 23. Bxd4 {[%clk 0:02:17]}  exd4 {[%clk 0:02:05]} 24. Bd3 {[%clk 0:02:17]}  Qc5 {[%clk 0:02:03]} 25. Qg2 {[%clk 0:02:10]}  Rfe8 {[%clk 0:01:58]} 26. h5 {[%clk 0:02:09]}  g5 {[%clk 0:01:56]} 27. h6 {[%clk 0:02:08]}  Bh8 {[%clk 0:01:56]} 28. h7+ {[%clk 0:02:07]}  Kf8 {[%clk 0:01:57]} 29. Rh5 {[%clk 0:02:03]}  Re5 {[%clk 0:01:53]} 30. Rf1 {[%clk 0:01:51]}  Qxd5 {[%clk 0:01:42]} 31. Qf2 {[%clk 0:01:50]}  Qe6 {[%clk 0:01:39]} 32. Rh6 {[%clk 0:01:46]}  Re1+ {[%clk 0:01:18]} 33. Rxe1 {[%clk 0:01:29]}  Qxh6 {[%clk 0:01:18]} 34. Rf1 {[%clk 0:01:16]}  Rc7 {[%clk 0:01:11]} 35. b3 {[%clk 0:00:58]}  Re7 {[%clk 0:01:07]} 36. Qf5 {[%clk 0:00:51]}  Qh4 {[%clk 0:00:44]} 37. Kb2 {[%clk 0:00:42]}  Qh2 {[%clk 0:00:27]} 38. Qc8+ {[%clk 0:00:38]}  Re8 {[%clk 0:00:27]} 39. Qxb7 {[%clk 0:00:38]}  Re7 {[%clk 0:00:26]} 40. Qa8+ {[%clk 0:00:35]}  Re8 {[%clk 0:00:25]} 41. Qd5 {[%clk 0:00:35]}  Re7 {[%clk 0:00:22]} 42. Qxg5 {[%clk 0:00:34]}  Bg7 {[%clk 0:00:16]} 43. Qd5 {[%clk 0:00:31]}  Qd2 {[%clk 0:00:15]} 44. Qa8+ {[%clk 0:00:28]}  Re8 {[%clk 0:00:15]} 45. Qh1 {[%clk 0:00:25]}  Qc3+ {[%clk 0:00:15]} 46. Kb1 {[%clk 0:00:25]}  a6 {[%clk 0:00:13]} 47. h8=Q+ {[%clk 0:00:25]}  Bxh8 {[%clk 0:00:13]} 48. Qxh8+ {[%clk 0:00:26]}  Ke7 {[%clk 0:00:14]} 49. Qg7 {[%clk 0:00:22]}  Kd8 {[%clk 0:00:14]} 50. Qf6+ {[%clk 0:00:22]}  Kc8 {[%clk 0:00:13]} 51. Qxf7 {[%clk 0:00:22]}  Re1+ {[%clk 0:00:14]} 52. Rxe1 {[%clk 0:00:19]}  Qxe1+ {[%clk 0:00:15]} 53. Kb2 {[%clk 0:00:20]}  Qc3+ {[%clk 0:00:15]} 54. Ka3 {[%clk 0:00:20]}  Qa5+ {[%clk 0:00:15]} 55. Kb2 {[%clk 0:00:21]}  Qc3+ {[%clk 0:00:16]} 56. Kc1 {[%clk 0:00:22]}  Qe1+ {[%clk 0:00:16]} 57. Kb2 {[%clk 0:00:22]}  Qc3+ {[%clk 0:00:17]} 1/2-1/2


[Site "https://www.chess.com"]

[Event "Titled Tuesday Blitz March 01 Late 2022"]
[White "Song, Michael"]
[Black "Ardila, Oscar Humberto"]
[WhiteFideId "2613190"]
[BlackFideId "4404742"]
[WhiteElo "2274"]
[BlackElo "1898"]
[Result "1-0"]
[Round "04"]
[TimeControl "180+1"]
[Date "2022.03.02"]
[WhiteClock "0:01:06"]
[BlackClock "0:00:07"]

1. e4 {[%clk 0:03:00]}  e5 {[%clk 0:03:00]} 2. f4 {[%clk 0:02:59]}  d5 {[%clk 0:02:59]} 3. exd5 {[%clk 0:02:58]}  e4 {[%clk 0:02:59]} 4. d3 {[%clk 0:02:58]}  Nf6 {[%clk 0:02:58]} 5. dxe4 {[%clk 0:02:58]}  Nxe4 {[%clk 0:02:58]} 6. Qe2 {[%clk 0:02:47]}  f5 {[%clk 0:02:58]} 7. Nf3 {[%clk 0:02:43]}  Qxd5 {[%clk 0:02:43]} 8. Nc3 {[%clk 0:02:43]}  Bb4 {[%clk 0:02:42]} 9. Bd2 {[%clk 0:02:43]}  Bxc3 {[%clk 0:02:40]} 10. Bxc3 {[%clk 0:02:43]}  O-O {[%clk 0:02:39]} 11. Be5 {[%clk 0:02:43]}  Nc6 {[%clk 0:02:35]} 12. Qc4 {[%clk 0:02:42]}  Be6 {[%clk 0:02:13]} 13. Qxd5 {[%clk 0:02:42]}  Bxd5 {[%clk 0:02:13]} 14. a3 {[%clk 0:02:34]}  Rac8 {[%clk 0:02:07]} 15. Rd1 {[%clk 0:02:26]}  Be6 {[%clk 0:01:40]} 16. Bb5 {[%clk 0:02:15]}  Nxe5 {[%clk 0:01:38]} 17. Nxe5 {[%clk 0:02:16]}  c6 {[%clk 0:01:37]} 18. Bd3 {[%clk 0:02:15]}  Rce8 {[%clk 0:01:27]} 19. Ke2 {[%clk 0:02:12]}  Bc8 {[%clk 0:01:19]} 20. Ke3 {[%clk 0:02:10]}  Nc5 {[%clk 0:01:14]} 21. Bc4+ {[%clk 0:02:09]}  Be6 {[%clk 0:01:14]} 22. Bxe6+ {[%clk 0:02:05]}  Rxe6 {[%clk 0:01:14]} 23. b4 {[%clk 0:02:03]}  Ne4 {[%clk 0:01:00]} 24. Rd7 {[%clk 0:02:02]}  Nf6 {[%clk 0:00:56]} 25. Rxb7 {[%clk 0:02:02]}  g5 {[%clk 0:00:56]} 26. g3 {[%clk 0:01:58]}  Nd5+ {[%clk 0:00:51]} 27. Kf3 {[%clk 0:01:51]}  Rfe8 {[%clk 0:00:26]} 28. c4 {[%clk 0:01:45]}  g4+ {[%clk 0:00:16]} 29. Kf2 {[%clk 0:01:44]}  Nc3 {[%clk 0:00:14]} 30. Ke3 {[%clk 0:01:42]}  Rd6 {[%clk 0:00:13]} 31. c5 {[%clk 0:01:38]}  Rd5 {[%clk 0:00:12]} 32. Rc1 {[%clk 0:01:35]}  Ne4 {[%clk 0:00:10]} 33. Rc4 {[%clk 0:01:24]}  Nf6 {[%clk 0:00:10]} 34. Rd4 {[%clk 0:01:23]}  Red8 {[%clk 0:00:08]} 35. Nxc6 {[%clk 0:01:17]}  Rxd4 {[%clk 0:00:04]} 36. Nxd4 {[%clk 0:01:17]}  Re8+ {[%clk 0:00:04]} 37. Kd3 {[%clk 0:01:17]}  Re4 {[%clk 0:00:04]} 38. Nxf5 {[%clk 0:01:16]}  Re6 {[%clk 0:00:04]} 39. Re7 {[%clk 0:01:14]}  Rc6 {[%clk 0:00:04]} 40. Kc4 {[%clk 0:01:12]}  Ra6 {[%clk 0:00:04]} 41. Re3 {[%clk 0:01:10]}  Kf8 {[%clk 0:00:04]} 42. Nd6 {[%clk 0:01:08]}  Rc6 {[%clk 0:00:04]} 43. b5 {[%clk 0:01:08]}  Rc7 {[%clk 0:00:04]} 44. c6 {[%clk 0:01:08]}  a6 {[%clk 0:00:04]} 45. a4 {[%clk 0:01:08]}  axb5+ {[%clk 0:00:04]} 46. axb5 {[%clk 0:01:09]}  Ra7 {[%clk 0:00:04]} 47. b6 {[%clk 0:01:09]}  Ra1 {[%clk 0:00:04]} 48. c7 {[%clk 0:01:09]}  Rc1+ {[%clk 0:00:05]} 49. Rc3 {[%clk 0:01:09]}  Rxc3+ {[%clk 0:00:04]} 50. Kxc3 {[%clk 0:01:09]}  Ke7 {[%clk 0:00:04]} 51. c8=Q {[%clk 0:01:07]}  Kxd6 {[%clk 0:00:05]} 52. Qf5 {[%clk 0:01:06]}  Nd5+ {[%clk 0:00:04]} 53. Kd4 {[%clk 0:01:06]}  Nxb6 {[%clk 0:00:05]} 54. Qxg4 {[%clk 0:01:06]}  Kc7 {[%clk 0:00:06]} 55. Qg7+ {[%clk 0:01:05]}  Nd7 {[%clk 0:00:07]} 56. Qxh7 {[%clk 0:01:06]}  Kd6 {[%clk 0:00:07]} 57. Qxd7+ {[%clk 0:01:06]}  Kxd7 {[%clk 0:00:07]} 58. Ke5 {[%clk 0:01:06]} 1-0


[Site "https://www.chess.com"]

[Event "Titled Tuesday Blitz March 01 Late 2022"]
[White "Steenbekkers, Franck"]
[Black "Kopczynski, Michal"]
[WhiteFideId "1004220"]
[BlackFideId "1124200"]
[WhiteElo "2173"]
[BlackElo "2235"]
[Result "0-1"]
[Round "04"]
[TimeControl "180+1"]
[Date "2022.03.02"]
[WhiteClock "0:00:49"]
[BlackClock "0:00:20"]

1. e4 {[%clk 0:03:00]}  c5 {[%clk 0:02:57]} 2. Nf3 {[%clk 0:02:59]}  d6 {[%clk 0:02:58]} 3. d4 {[%clk 0:02:58]}  cxd4 {[%clk 0:02:59]} 4. Nxd4 {[%clk 0:02:59]}  Nf6 {[%clk 0:02:59]} 5. Nc3 {[%clk 0:02:59]}  g6 {[%clk 0:03:00]} 6. Be3 {[%clk 0:02:57]}  Bg7 {[%clk 0:03:00]} 7. f3 {[%clk 0:02:54]}  O-O {[%clk 0:03:00]} 8. Qd2 {[%clk 0:02:54]}  Nc6 {[%clk 0:03:01]} 9. O-O-O {[%clk 0:02:53]}  d5 {[%clk 0:03:01]} 10. exd5 {[%clk 0:02:53]}  Nxd5 {[%clk 0:03:01]} 11. Nxc6 {[%clk 0:02:52]}  bxc6 {[%clk 0:03:02]} 12. Bd4 {[%clk 0:02:52]}  e5 {[%clk 0:03:02]} 13. Bc5 {[%clk 0:02:51]}  Be6 {[%clk 0:03:03]} 14. Ne4 {[%clk 0:02:50]}  Rb8 {[%clk 0:03:01]} 15. h4 {[%clk 0:02:48]}  Re8 {[%clk 0:02:54]} 16. Bc4 {[%clk 0:02:46]}  h6 {[%clk 0:02:49]} 17. g4 {[%clk 0:02:44]}  Nf4 {[%clk 0:02:32]} 18. Qc3 {[%clk 0:02:36]}  Bxc4 {[%clk 0:01:54]} 19. Qxc4 {[%clk 0:02:28]}  Qa5 {[%clk 0:01:53]} 20. g5 {[%clk 0:02:22]}  h5 {[%clk 0:01:45]} 21. Nf6+ {[%clk 0:02:19]}  Bxf6 {[%clk 0:01:41]} 22. gxf6 {[%clk 0:02:18]}  Rb5 {[%clk 0:01:04]} 23. Rd7 {[%clk 0:02:10]}  Ne6 {[%clk 0:00:43]} 24. Be7 {[%clk 0:02:07]}  Reb8 {[%clk 0:00:37]} 25. Ba3 {[%clk 0:01:44]}  Rd5 {[%clk 0:00:28]} 26. Qxc6 {[%clk 0:01:40]}  Rxd7 {[%clk 0:00:28]} 27. Qxd7 {[%clk 0:01:39]}  Qb6 {[%clk 0:00:27]} 28. Rd1 {[%clk 0:01:28]}  Rd8 {[%clk 0:00:24]} 29. Qe7 {[%clk 0:00:49]}  Qe3+ {[%clk 0:00:20]} 0-1


[Site "https://www.chess.com"]

[Event "Titled Tuesday Blitz March 01 Late 2022"]
[White "Sztokbant, Bernardo Vainzoff"]
[Black "Calcada, Lucas Galvan"]
[WhiteFideId "2115956"]
[BlackFideId "22746099"]
[WhiteElo "2264"]
[BlackElo "1402"]
[Result "1-0"]
[Round "04"]
[TimeControl "180+1"]
[Date "2022.03.02"]
[WhiteClock "0:00:06"]
[BlackClock "0:00:03"]

1. d4 {[%clk 0:03:00]}  Nf6 {[%clk 0:02:58]} 2. c4 {[%clk 0:03:01]}  g6 {[%clk 0:02:56]} 3. Nf3 {[%clk 0:03:02]}  Bg7 {[%clk 0:02:56]} 4. g3 {[%clk 0:03:03]}  O-O {[%clk 0:02:56]} 5. Bg2 {[%clk 0:03:04]}  d6 {[%clk 0:02:56]} 6. O-O {[%clk 0:03:05]}  Nbd7 {[%clk 0:02:55]} 7. Nc3 {[%clk 0:03:06]}  e5 {[%clk 0:02:55]} 8. e4 {[%clk 0:03:07]}  Re8 {[%clk 0:02:54]} 9. Re1 {[%clk 0:03:07]}  c6 {[%clk 0:02:54]} 10. h3 {[%clk 0:03:05]}  a5 {[%clk 0:02:50]} 11. Be3 {[%clk 0:03:02]}  Qc7 {[%clk 0:02:47]} 12. Qc2 {[%clk 0:03:01]}  exd4 {[%clk 0:02:47]} 13. Nxd4 {[%clk 0:03:02]}  Nc5 {[%clk 0:02:47]} 14. Rad1 {[%clk 0:02:59]}  Ne6 {[%clk 0:02:20]} 15. Nde2 {[%clk 0:02:56]}  Nd7 {[%clk 0:02:18]} 16. Rd2 {[%clk 0:02:45]}  Ne5 {[%clk 0:02:16]} 17. b3 {[%clk 0:02:46]}  Nc5 {[%clk 0:02:03]} 18. f4 {[%clk 0:02:46]}  Ned7 {[%clk 0:02:02]} 19. Red1 {[%clk 0:02:46]}  Bf8 {[%clk 0:02:02]} 20. Bf2 {[%clk 0:02:40]}  Na6 {[%clk 0:02:00]} 21. a3 {[%clk 0:02:25]}  Nac5 {[%clk 0:01:52]} 22. Kh2 {[%clk 0:02:21]}  Qb6 {[%clk 0:01:38]} 23. Rb1 {[%clk 0:02:08]}  Qa6 {[%clk 0:01:37]} 24. g4 {[%clk 0:02:01]}  a4 {[%clk 0:01:29]} 25. b4 {[%clk 0:02:02]}  Nb3 {[%clk 0:01:28]} 26. Rdd1 {[%clk 0:01:50]}  Qxc4 {[%clk 0:01:28]} 27. Bf1 {[%clk 0:01:40]}  Qe6 {[%clk 0:01:09]} 28. Nxa4 {[%clk 0:01:33]}  Rxa4 {[%clk 0:01:07]} 29. Rxb3 {[%clk 0:01:30]}  Qxe4 {[%clk 0:01:05]} 30. Qxe4 {[%clk 0:01:31]}  Rxe4 {[%clk 0:01:04]} 31. Nc3 {[%clk 0:01:32]}  Rxf4 {[%clk 0:00:58]} 32. Bg3 {[%clk 0:01:29]}  Rf3 {[%clk 0:00:57]} 33. Bg2 {[%clk 0:01:18]}  Rxg3 {[%clk 0:00:40]} 34. Kxg3 {[%clk 0:01:18]}  Ra8 {[%clk 0:00:40]} 35. a4 {[%clk 0:01:14]}  d5 {[%clk 0:00:39]} 36. a5 {[%clk 0:01:11]}  Bd6+ {[%clk 0:00:37]} 37. Kf2 {[%clk 0:01:10]}  Ne5 {[%clk 0:00:38]} 38. Na4 {[%clk 0:01:01]}  Nc4 {[%clk 0:00:36]} 39. Nb2 {[%clk 0:00:48]}  Ne5 {[%clk 0:00:30]} 40. Na4 {[%clk 0:00:40]}  Nc4 {[%clk 0:00:29]} 41. Rbb1 {[%clk 0:00:36]}  f5 {[%clk 0:00:28]} 42. Bf3 {[%clk 0:00:34]}  fxg4 {[%clk 0:00:27]} 43. hxg4 {[%clk 0:00:35]}  Bd7 {[%clk 0:00:27]} 44. Rxd5 {[%clk 0:00:28]}  cxd5 {[%clk 0:00:25]} 45. Bxd5+ {[%clk 0:00:29]}  Kg7 {[%clk 0:00:25]} 46. Nc3 {[%clk 0:00:23]}  Ne5 {[%clk 0:00:23]} 47. Bxb7 {[%clk 0:00:20]}  Rf8+ {[%clk 0:00:20]} 48. Kg2 {[%clk 0:00:20]}  Nxg4 {[%clk 0:00:16]} 49. Re1 {[%clk 0:00:18]}  Rf2+ {[%clk 0:00:15]} 50. Kg1 {[%clk 0:00:17]}  Bh2+ {[%clk 0:00:13]} 51. Kh1 {[%clk 0:00:17]}  Be5 {[%clk 0:00:11]} 52. Ne2 {[%clk 0:00:11]}  Rh2+ {[%clk 0:00:06]} 53. Kg1 {[%clk 0:00:11]}  Bd6 {[%clk 0:00:02]} 54. a6 {[%clk 0:00:09]}  Be5 {[%clk 0:00:02]} 55. a7 {[%clk 0:00:08]}  Bd6 {[%clk 0:00:03]} 56. a8=Q {[%clk 0:00:08]}  Bc7 {[%clk 0:00:03]} 57. Qa7 {[%clk 0:00:06]} 1-0


[Site "https://www.chess.com"]

[Event "Titled Tuesday Blitz March 01 Late 2022"]
[White "Tanenbaum, Zachary"]
[Black "Grischuk, Alexander"]
[WhiteFideId "2060850"]
[BlackFideId "4126025"]
[WhiteElo "2168"]
[BlackElo "2762"]
[Result "0-1"]
[Round "04"]
[TimeControl "180+1"]
[Date "2022.03.01"]
[WhiteClock "0:00:12"]
[BlackClock "0:01:34"]

1. e4 {[%clk 0:03:00]}  d5 {[%clk 0:03:00]} 2. exd5 {[%clk 0:03:01]}  Qxd5 {[%clk 0:03:00]} 3. Nc3 {[%clk 0:03:01]}  Qa5 {[%clk 0:03:00]} 4. d4 {[%clk 0:03:02]}  Nf6 {[%clk 0:03:01]} 5. Nf3 {[%clk 0:03:02]}  c6 {[%clk 0:03:01]} 6. Bc4 {[%clk 0:03:02]}  Bf5 {[%clk 0:03:01]} 7. Bd2 {[%clk 0:03:01]}  Nbd7 {[%clk 0:03:01]} 8. Qe2 {[%clk 0:02:57]}  Qc7 {[%clk 0:03:00]} 9. O-O-O {[%clk 0:02:55]}  e6 {[%clk 0:03:00]} 10. Rhe1 {[%clk 0:02:50]}  O-O-O {[%clk 0:02:57]} 11. Ne5 {[%clk 0:02:26]}  Nxe5 {[%clk 0:02:55]} 12. dxe5 {[%clk 0:02:27]}  Nd5 {[%clk 0:02:54]} 13. Bxd5 {[%clk 0:02:20]}  cxd5 {[%clk 0:02:46]} 14. Be3 {[%clk 0:02:20]}  Bb4 {[%clk 0:02:13]} 15. Nb5 {[%clk 0:02:13]}  Qa5 {[%clk 0:02:13]} 16. Nxa7+ {[%clk 0:00:54]}  Kb8 {[%clk 0:02:07]} 17. Kb1 {[%clk 0:00:40]}  Bxe1 {[%clk 0:01:49]} 18. Rxe1 {[%clk 0:00:41]}  d4 {[%clk 0:01:48]} 19. Bg5 {[%clk 0:00:30]}  d3 {[%clk 0:01:42]} 20. Bxd8 {[%clk 0:00:22]}  Rxd8 {[%clk 0:01:43]} 21. Qe3 {[%clk 0:00:12]}  dxc2+ {[%clk 0:01:41]} 22. Kc1 {[%clk 0:00:12]}  Qxa7 {[%clk 0:01:34]} 0-1


[Site "https://www.chess.com"]

[Event "Titled Tuesday Blitz March 01 Late 2022"]
[White "Tari, Aryan"]
[Black "Leiva, Gianmarco"]
[WhiteFideId "1510045"]
[BlackFideId "3804399"]
[WhiteElo "2567"]
[BlackElo "2328"]
[Result "1/2-1/2"]
[Round "04"]
[TimeControl "180+1"]
[Date "2022.03.01"]
[WhiteClock "0:00:17"]
[BlackClock "0:00:13"]

1. c4 {[%clk 0:03:00]}  e6 {[%clk 0:02:59]} 2. Nc3 {[%clk 0:02:57]}  d5 {[%clk 0:02:59]} 3. d4 {[%clk 0:02:58]}  c6 {[%clk 0:02:59]} 4. e4 {[%clk 0:02:52]}  dxe4 {[%clk 0:02:59]} 5. Nxe4 {[%clk 0:02:53]}  Bb4+ {[%clk 0:02:59]} 6. Nc3 {[%clk 0:02:52]}  Nf6 {[%clk 0:02:52]} 7. Nf3 {[%clk 0:02:47]}  c5 {[%clk 0:02:52]} 8. Be3 {[%clk 0:02:44]}  Nc6 {[%clk 0:02:29]} 9. a3 {[%clk 0:02:20]}  Bxc3+ {[%clk 0:02:22]} 10. bxc3 {[%clk 0:02:21]}  O-O {[%clk 0:02:22]} 11. Bd3 {[%clk 0:02:21]}  cxd4 {[%clk 0:02:11]} 12. cxd4 {[%clk 0:02:21]}  e5 {[%clk 0:02:12]} 13. dxe5 {[%clk 0:02:06]}  Nxe5 {[%clk 0:02:12]} 14. Nxe5 {[%clk 0:02:07]}  Qa5+ {[%clk 0:02:12]} 15. Qd2 {[%clk 0:02:06]}  Qxe5 {[%clk 0:02:13]} 16. O-O {[%clk 0:02:05]}  Bf5 {[%clk 0:02:08]} 17. Bf4 {[%clk 0:01:59]}  Qc5 {[%clk 0:02:08]} 18. Be3 {[%clk 0:01:55]}  Qe5 {[%clk 0:02:01]} 19. Bxf5 {[%clk 0:01:51]}  Qxf5 {[%clk 0:02:02]} 20. h3 {[%clk 0:01:52]}  Rfd8 {[%clk 0:01:57]} 21. Qb4 {[%clk 0:01:52]}  b6 {[%clk 0:01:47]} 22. a4 {[%clk 0:01:52]}  Qe4 {[%clk 0:01:22]} 23. Rfd1 {[%clk 0:01:42]}  Nd5 {[%clk 0:01:15]} 24. Qd2 {[%clk 0:01:40]}  Qxc4 {[%clk 0:01:08]} 25. a5 {[%clk 0:01:35]}  Qc7 {[%clk 0:00:47]} 26. Rac1 {[%clk 0:01:25]}  Qe7 {[%clk 0:00:46]} 27. Bd4 {[%clk 0:01:15]}  h6 {[%clk 0:00:34]} 28. Qb2 {[%clk 0:01:08]}  Qg5 {[%clk 0:00:32]} 29. g3 {[%clk 0:00:55]}  Nf4 {[%clk 0:00:28]} 30. Be3 {[%clk 0:00:49]}  Rxd1+ {[%clk 0:00:09]} 31. Rxd1 {[%clk 0:00:49]}  Qh5 {[%clk 0:00:08]} 32. Ra1 {[%clk 0:00:30]}  Nxh3+ {[%clk 0:00:08]} 33. Kg2 {[%clk 0:00:31]}  Ng5 {[%clk 0:00:09]} 34. Bxg5 {[%clk 0:00:29]}  Qxg5 {[%clk 0:00:08]} 35. axb6 {[%clk 0:00:29]}  Qd5+ {[%clk 0:00:08]} 36. Kh2 {[%clk 0:00:27]}  axb6 {[%clk 0:00:08]} 37. Rxa8+ {[%clk 0:00:27]}  Qxa8 {[%clk 0:00:08]} 38. Qxb6 {[%clk 0:00:28]}  Qf3 {[%clk 0:00:08]} 39. Qd4 {[%clk 0:00:27]}  Kh7 {[%clk 0:00:08]} 40. Kg1 {[%clk 0:00:27]}  h5 {[%clk 0:00:08]} 41. Qe5 {[%clk 0:00:27]}  f6 {[%clk 0:00:08]} 42. Qe8 {[%clk 0:00:26]}  h4 {[%clk 0:00:08]} 43. gxh4 {[%clk 0:00:25]}  Qg4+ {[%clk 0:00:08]} 44. Kf1 {[%clk 0:00:25]}  Qh3+ {[%clk 0:00:09]} 45. Kg1 {[%clk 0:00:25]}  Qg4+ {[%clk 0:00:09]} 46. Kf1 {[%clk 0:00:25]}  Qxh4 {[%clk 0:00:09]} 47. Kg2 {[%clk 0:00:21]}  Qg4+ {[%clk 0:00:10]} 48. Kh2 {[%clk 0:00:21]}  Qh4+ {[%clk 0:00:10]} 49. Kg2 {[%clk 0:00:22]}  Qg5+ {[%clk 0:00:10]} 50. Kf1 {[%clk 0:00:20]}  Qc1+ {[%clk 0:00:10]} 51. Kg2 {[%clk 0:00:19]}  Qg5+ {[%clk 0:00:11]} 52. Kf1 {[%clk 0:00:20]}  Qe5 {[%clk 0:00:11]} 53. Qd7 {[%clk 0:00:18]}  Qa1+ {[%clk 0:00:11]} 54. Kg2 {[%clk 0:00:18]}  Qa8+ {[%clk 0:00:11]} 55. Kh2 {[%clk 0:00:17]}  Qe4 {[%clk 0:00:12]} 56. Qh3+ {[%clk 0:00:17]}  Kg6 {[%clk 0:00:12]} 57. Qd7 {[%clk 0:00:18]}  Qe5+ {[%clk 0:00:12]} 58. Kg2 {[%clk 0:00:17]}  Qe4+ {[%clk 0:00:12]} 59. Kh2 {[%clk 0:00:17]}  Qf4+ {[%clk 0:00:13]} 60. Kg2 {[%clk 0:00:17]}  Qe4+ {[%clk 0:00:13]} 61. Kh2 {[%clk 0:00:17]} 1/2-1/2


[Site "https://www.chess.com"]

[Event "Titled Tuesday Blitz March 01 Late 2022"]
[White "Tomb, Maroun"]
[Black "Babazada, Khazar"]
[WhiteFideId "5300398"]
[BlackFideId "13413554"]
[WhiteElo "2569"]
[BlackElo "2418"]
[Result "0-1"]
[Round "04"]
[TimeControl "180+1"]
[Date "2022.03.01"]
[WhiteClock "0:00:01"]
[BlackClock "0:00:48"]

1. e4 {[%clk 0:03:00]}  Nf6 {[%clk 0:02:58]} 2. d3 {[%clk 0:03:00]}  e5 {[%clk 0:02:55]} 3. Nd2 {[%clk 0:03:01]}  Nc6 {[%clk 0:02:51]} 4. Ngf3 {[%clk 0:03:00]}  d6 {[%clk 0:02:48]} 5. Be2 {[%clk 0:03:00]}  g6 {[%clk 0:02:44]} 6. c3 {[%clk 0:03:01]}  Bg7 {[%clk 0:02:45]} 7. b4 {[%clk 0:03:01]}  O-O {[%clk 0:02:43]} 8. Qc2 {[%clk 0:02:59]}  Nh5 {[%clk 0:02:42]} 9. Nf1 {[%clk 0:02:56]}  Nf4 {[%clk 0:02:41]} 10. Bxf4 {[%clk 0:02:52]}  exf4 {[%clk 0:02:42]} 11. N1d2 {[%clk 0:02:49]}  Nxb4 {[%clk 0:02:41]} 12. Qb3 {[%clk 0:02:27]}  Nc6 {[%clk 0:02:39]} 13. d4 {[%clk 0:02:25]}  a6 {[%clk 0:02:26]} 14. O-O {[%clk 0:02:19]}  b5 {[%clk 0:02:17]} 15. a4 {[%clk 0:02:16]}  b4 {[%clk 0:02:18]} 16. cxb4 {[%clk 0:02:06]}  Rb8 {[%clk 0:02:17]} 17. Qc3 {[%clk 0:01:50]}  Nxb4 {[%clk 0:02:14]} 18. Rfd1 {[%clk 0:01:33]}  a5 {[%clk 0:02:13]} 19. Nb3 {[%clk 0:01:14]}  c6 {[%clk 0:02:10]} 20. Rab1 {[%clk 0:01:09]}  Re8 {[%clk 0:02:09]} 21. e5 {[%clk 0:01:03]}  Bf5 {[%clk 0:02:09]} 22. Rb2 {[%clk 0:00:55]}  Be4 {[%clk 0:02:06]} 23. exd6 {[%clk 0:00:41]}  Nd5 {[%clk 0:02:04]} 24. Qc5 {[%clk 0:00:34]}  Bf8 {[%clk 0:02:00]} 25. Rdd2 {[%clk 0:00:16]}  Bxf3 {[%clk 0:01:53]} 26. gxf3 {[%clk 0:00:17]}  Bxd6 {[%clk 0:01:53]} 27. Qxc6 {[%clk 0:00:17]}  Bb4 {[%clk 0:01:48]} 28. Rdc2 {[%clk 0:00:12]}  Re6 {[%clk 0:01:38]} 29. Qc4 {[%clk 0:00:10]}  Qg5+ {[%clk 0:01:39]} 30. Kf1 {[%clk 0:00:10]}  Rbe8 {[%clk 0:01:40]} 31. Rb1 {[%clk 0:00:09]}  Nc3 {[%clk 0:01:37]} 32. Rbb2 {[%clk 0:00:08]}  Nd5 {[%clk 0:01:15]} 33. Nc5 {[%clk 0:00:07]}  Bxc5 {[%clk 0:01:05]} 34. dxc5 {[%clk 0:00:08]}  Nb4 {[%clk 0:00:59]} 35. Rd2 {[%clk 0:00:08]}  Qh4 {[%clk 0:00:56]} 36. Kg2 {[%clk 0:00:08]}  Re5 {[%clk 0:00:53]} 37. Bf1 {[%clk 0:00:05]}  Rh5 {[%clk 0:00:48]} 38. Be2 {[%clk 0:00:01]}  Qxh2+ {[%clk 0:00:48]} 0-1


[Site "https://www.chess.com"]